fUSD/lending_fUSD_20260607
["ID","MTS","AMOUNT","RATE_DAILY","PERIOD"]
[424407440,1780842674000,-457.77009435,0.00029776,2]
[424407432,1780842674000,-1000.0,0.00029743,7]
[424407439,1780842674000,-221.56875293,0.00029776,2]
[424407476,1780842674000,-483.88795737,0.00029781,2]
[424407434,1780842674000,-165.10417388,0.00029776,2]
[424407435,1780842674000,-227.65132296,0.00029776,2]
[424407436,1780842674000,-225.37256483,0.00029776,2]
[424407438,1780842674000,-504.02124584,0.00029776,2]
[424407437,1780842674000,-268.94983147,0.00029776,2]
[424407452,1780842674000,-244.43556914,0.00029776,2]
[424407442,1780842674000,-401.73275146,0.00029776,2]
[424407444,1780842674000,-232.14031331,0.00029776,2]
[424407441,1780842674000,-173.51621744,0.00029776,2]
[424407443,1780842674000,-207.37486014,0.00029776,2]
[424407445,1780842674000,-598.2176867,0.00029776,2]
[424407446,1780842674000,-456.63015092,0.00029776,2]
[424407468,1780842674000,-652.53493119,0.00029781,2]
[424407478,1780842674000,-352.74604861,0.00029781,2]
[424407475,1780842674000,-474.1260339,0.00029781,2]
[424407497,1780842674000,-225.49155646,0.00029822,2]
[424407495,1780842674000,-275.71311866,0.00029822,2]
[424407499,1780842674000,-312.37440516,0.00029822,2]
[424407501,1780842674000,-248.36781477,0.00029822,2]
[424407498,1780842674000,-217.75214228,0.00029822,2]
[424407502,1780842674000,-152.70084842,0.00029822,2]
[424407500,1780842674000,-245.69741046,0.00029822,2]
[424407504,1780842674000,-227.86418605,0.00029822,2]
[424407505,1780842674000,-225.36566486,0.00029822,2]
[424407508,1780842674000,-243.401202,0.00029889,7]
[424407509,1780842674000,-151.0,0.00029896,7]
[424407506,1780842674000,-150.19394364,0.0002985,20]
[424407511,1780842674000,-3050.0,0.000299,2]
[424407507,1780842674000,-1069.24,0.00029889,30]
[424407510,1780842674000,-28743.67719338,0.000299,2]
[424407512,1780842674000,-816.09045085,0.00029105,2]
[424407474,1780842674000,-311.19907951,0.00029781,2]
[424407513,1780842674000,-180.43954915,0.00029105,2]
[424407515,1780842674000,-611.70627847,0.00014794,2]
[424407496,1780842674000,-230.09750664,0.00029822,2]
[424407494,1780842674000,-271.247035,0.00029822,2]
[424407514,1780842674000,-852.33573974,0.000299,2]
[424407493,1780842674000,-210.43461815,0.00029822,2]
[424407492,1780842674000,-314.79906178,0.00029822,2]
[424407470,1780842674000,-351.58722287,0.00029781,2]
[424407469,1780842674000,-442.90220179,0.00029781,2]
[424407471,1780842674000,-348.91715148,0.00029781,2]
[424407473,1780842674000,-354.91356291,0.00029781,2]
[424407472,1780842674000,-338.53628017,0.00029781,2]
[424407479,1780842674000,-457.90517539,0.00029781,2]
[424407482,1780842674000,-174.70730463,0.00029797,2]
[424407481,1780842674000,-283.61108829,0.00029797,2]
[424407480,1780842674000,-433.86993468,0.00029781,2]
[424407489,1780842674000,-1000.0,0.00029821,7]
[424407485,1780842674000,-1087.66,0.00029803,7]
[424407487,1780842674000,-652.0,0.00029807,4]
[424407486,1780842674000,-1000.0,0.00029803,7]
[424407490,1780842674000,-194.22606139,0.00029822,2]
[424407491,1780842674000,-246.28388658,0.00029822,2]
[424407484,1780842674000,-1069.24,0.000298,30]
[424407483,1780842674000,-298.12493231,0.00029797,2]
[424407488,1780842674000,-1000.0,0.00029808,7]
[424407503,1780842674000,-214.46947484,0.00029822,2]
[424407516,1780842675000,-355.8365454,0.00014794,2]
[424407517,1780842675000,-21011.12886933,0.00014794,2]
[424407518,1780842675000,-1020.0,0.0002132,7]
[424407525,1780842675000,-996.53,0.00029201,2]
[424407519,1780842675000,-1552.94,0.0002863,30]
[424407520,1780842675000,-1552.94,0.00028797,7]
[424407522,1780842675000,-1552.94,0.00029132,30]
[424407523,1780842675000,-996.53,0.00029137,7]
[424407526,1780842675000,-140.55875852,0.00029232,7]
[424407528,1780842675000,-115.2511041,0.00024763,10]
[424407527,1780842675000,-562.4988959,0.000138,2]
[424407524,1780842675000,-996.53,0.00029169,30]
[424407521,1780842675000,-1552.94,0.00028964,2]
[424407529,1780842701000,150.0,0.00016673,120]
[424407531,1780842751000,879.79,0.00029863,120]
[424407535,1780842981000,2238.64,0.0003,120]
[424407536,1780843453000,260.0,0.0002841,120]
[424407541,1780843733000,150.0,0.00012691,120]
[424407542,1780843741000,1101.70294198,0.00030135,120]
[424407543,1780843747000,412.29109407,0.00030136,120]
[424407544,1780843767000,200.0,0.00027314,120]
[424407545,1780843769000,333.0,0.00027314,120]
[424407552,1780843831000,-250.0,0.00011968,2]
[424407551,1780843831000,-150.0,0.00011254,2]
[424407554,1780843831000,-250.0,0.00012379,2]
[424407553,1780843831000,-784.25590066,0.00012379,2]
[424407557,1780843831000,-150.0,0.00012691,2]
[424407556,1780843831000,-221.83197889,0.0001269,2]
[424407558,1780843831000,-5627.95829736,0.00012749,2]
[424407559,1780843831000,-314.69518012,0.00012749,2]
[424407562,1780843831000,-287.06431718,0.00012749,2]
[424407561,1780843831000,-3130.41787344,0.00012749,2]
[424407560,1780843831000,-7168.40863109,0.00012749,2]
[424407555,1780843831000,-200.0,0.00012683,2]
[424407611,1780843838000,-500.0,0.00012748,2]
[424407612,1780843838000,-300.48827655,0.00012748,2]
[424407614,1780843838000,-250.70953051,0.00012748,2]
[424407618,1780843838000,-360.11945428,0.00012748,2]
[424407619,1780843838000,-500.0,0.00012748,2]
[424407615,1780843838000,-500.0,0.00012748,2]
[424407620,1780843838000,-500.0,0.00012748,2]
[424407613,1780843838000,-500.0,0.00012748,2]
[424407617,1780843838000,-500.0,0.00012748,2]
[424407616,1780843838000,-191.10079927,0.00012748,2]
[424407650,1780843839000,-7962.64,0.00012749,2]
[424407651,1780843839000,-9781.20000012,0.00012749,2]
[424407653,1780843839000,-18000.0,0.00012749,2]
[424407654,1780843839000,-1281025.08060005,0.00012749,2]
[424407655,1780843839000,-2500.0,0.0001275,2]
[424407656,1780843839000,-1153.6,0.00012771,2]
[424407658,1780843839000,-163.383,0.00012848,2]
[424407657,1780843839000,-403.27,0.00012839,2]
[424407660,1780843839000,-13194.06874025,0.00012849,2]
[424407668,1780843839000,-500.0,0.00013425,2]
[424407661,1780843839000,-500.0,0.00012849,2]
[424407664,1780843839000,-215.83393831,0.00012914,2]
[424407662,1780843839000,-193.0,0.00012849,2]
[424407659,1780843839000,-150.0,0.00012848,2]
[424407667,1780843839000,-500.0,0.00013425,2]
[424407666,1780843839000,-500.0,0.00013425,2]
[424407665,1780843839000,-160.0,0.00012914,2]
[424407670,1780843839000,-500.0,0.00013425,2]
[424407680,1780843839000,-500.0,0.00013698,2]
[424407669,1780843839000,-500.0,0.00013425,2]
[424407679,1780843839000,-500.0,0.00013698,2]
[424407671,1780843839000,-500.0,0.00013425,2]
[424407674,1780843839000,-500.0,0.00013698,2]
[424407675,1780843839000,-500.0,0.00013698,2]
[424407678,1780843839000,-500.0,0.00013698,2]
[424407677,1780843839000,-500.0,0.00013698,2]
[424407652,1780843839000,-1704.75,0.00012749,2]
[424407663,1780843839000,-193.0,0.00012849,2]
[424407645,1780843839000,-500.0,0.00012748,2]
[424407644,1780843839000,-500.0,0.00012748,2]
[424407624,1780843839000,-500.0,0.00012748,2]
[424407622,1780843839000,-500.0,0.00012748,2]
[424407623,1780843839000,-500.0,0.00012748,2]
[424407621,1780843839000,-500.0,0.00012748,2]
[424407625,1780843839000,-500.0,0.00012748,2]
[424407634,1780843839000,-500.0,0.00012748,2]
[424407627,1780843839000,-500.0,0.00012748,2]
[424407626,1780843839000,-500.0,0.00012748,2]
[424407632,1780843839000,-500.0,0.00012748,2]
[424407635,1780843839000,-500.0,0.00012748,2]
[424407636,1780843839000,-500.0,0.00012748,2]
[424407633,1780843839000,-500.0,0.00012748,2]
[424407673,1780843839000,-181.28,0.00013657,2]
[424407628,1780843839000,-500.0,0.00012748,2]
[424407629,1780843839000,-500.0,0.00012748,2]
[424407630,1780843839000,-500.0,0.00012748,2]
[424407638,1780843839000,-500.0,0.00012748,2]
[424407648,1780843839000,-164360.07395236,0.00012749,2]
[424407637,1780843839000,-500.0,0.00012748,2]
[424407640,1780843839000,-500.0,0.00012748,2]
[424407642,1780843839000,-500.0,0.00012748,2]
[424407639,1780843839000,-500.0,0.00012748,2]
[424407647,1780843839000,-583.12473021,0.00012748,2]
[424407646,1780843839000,-500.0,0.00012748,2]
[424407643,1780843839000,-500.0,0.00012748,2]
[424407641,1780843839000,-500.0,0.00012748,2]
[424407631,1780843839000,-500.0,0.00012748,2]
[424407672,1780843839000,-500.0,0.00013425,2]
[424407649,1780843839000,-637.71114828,0.00012749,2]
[424407682,1780843839000,-500.0,0.00013698,2]
[424407716,1780843839000,-500.0,0.00013699,2]
[424407713,1780843839000,-500.0,0.00013699,2]
[424407715,1780843839000,-500.0,0.00013699,2]
[424407718,1780843839000,-500.0,0.00013699,2]
[424407719,1780843839000,-500.0,0.00013699,2]
[424407708,1780843839000,-500.0,0.00013699,2]
[424407721,1780843839000,-153.62103583,0.00013699,2]
[424407729,1780843839000,-500.0,0.00013699,2]
[424407732,1780843839000,-498.95651696,0.000138,2]
[424407730,1780843839000,-500.0,0.00013699,2]
[424407723,1780843839000,-500.0,0.00013699,2]
[424407722,1780843839000,-500.0,0.00013699,2]
[424407714,1780843839000,-500.0,0.00013699,2]
[424407731,1780843839000,-500.0,0.00013699,2]
[424407725,1780843839000,-500.0,0.00013699,2]
[424407728,1780843839000,-500.0,0.00013699,2]
[424407727,1780843839000,-500.0,0.00013699,2]
[424407726,1780843839000,-500.0,0.00013699,2]
[424407734,1780843839000,-166.66,0.00013836,2]
[424407735,1780843839000,-500.0,0.00013899,2]
[424407733,1780843839000,-2405.1216,0.000138,2]
[424407738,1780843839000,-500.0,0.00013899,2]
[424407739,1780843839000,-500.0,0.00013899,2]
[424407737,1780843839000,-500.0,0.00013899,2]
[424407736,1780843839000,-500.0,0.00013899,2]
[424407676,1780843839000,-500.0,0.00013698,2]
[424407724,1780843839000,-500.0,0.00013699,2]
[424407717,1780843839000,-500.0,0.00013699,2]
[424407720,1780843839000,-500.0,0.00013699,2]
[424407711,1780843839000,-500.0,0.00013699,2]
[424407692,1780843839000,-500.0,0.00013698,2]
[424407712,1780843839000,-500.0,0.00013699,2]
[424407691,1780843839000,-703.17,0.00013698,2]
[424407693,1780843839000,-500.0,0.00013698,2]
[424407690,1780843839000,-500.0,0.00013698,2]
[424407681,1780843839000,-500.0,0.00013698,2]
[424407683,1780843839000,-500.43121743,0.00013698,2]
[424407688,1780843839000,-500.0,0.00013698,2]
[424407685,1780843839000,-500.0,0.00013698,2]
[424407687,1780843839000,-500.0,0.00013698,2]
[424407689,1780843839000,-525.11763864,0.00013698,2]
[424407695,1780843839000,-193.0,0.00013698,2]
[424407698,1780843839000,-9999.99,0.00013699,2]
[424407697,1780843839000,-500.0,0.00013698,2]
[424407684,1780843839000,-500.0,0.00013698,2]
[424407706,1780843839000,-1096.31,0.00013699,2]
[424407710,1780843839000,-500.0,0.00013699,2]
[424407707,1780843839000,-193.0,0.00013699,2]
[424407700,1780843839000,-1218.61,0.00013699,2]
[424407704,1780843839000,-166.66,0.00013699,2]
[424407701,1780843839000,-499.99,0.00013699,2]
[424407702,1780843839000,-150.99,0.00013699,2]
[424407709,1780843839000,-500.0,0.00013699,2]
[424407699,1780843839000,-4999.99,0.00013699,2]
[424407696,1780843839000,-500.0,0.00013698,2]
[424407705,1780843839000,-200.0,0.00013699,2]
[424407694,1780843839000,-500.84274803,0.00013698,2]
[424407703,1780843839000,-2500.0,0.00013699,2]
[424407785,1780843840000,-395.15,0.00014999,2]
[424407784,1780843840000,-500.0,0.00014999,2]
[424407786,1780843840000,-500.0,0.00014999,2]
[424407783,1780843840000,-500.0,0.00014999,2]
[424407778,1780843840000,-500.0,0.00014707,2]
[424407781,1780843840000,-10000.0,0.000149,2]
[424407776,1780843840000,-703.17,0.00014707,2]
[424407780,1780843840000,-269.90048752,0.00014818,2]
[424407779,1780843840000,-500.0,0.00014707,2]
[424407774,1780843840000,-456.53966443,0.00014707,2]
[424407775,1780843840000,-500.0,0.00014707,2]
[424407773,1780843840000,-500.0,0.00014707,2]
[424407777,1780843840000,-500.0,0.00014707,2]
[424407789,1780843840000,-500.0,0.00014999,2]
[424407803,1780843840000,-500.0,0.00014999,2]
[424407788,1780843840000,-500.0,0.00014999,2]
[424407795,1780843840000,-500.0,0.00014999,2]
[424407793,1780843840000,-500.0,0.00014999,2]
[424407790,1780843840000,-500.0,0.00014999,2]
[424407787,1780843840000,-500.0,0.00014999,2]
[424407792,1780843840000,-500.0,0.00014999,2]
[424407791,1780843840000,-450.4761853,0.00014999,2]
[424407797,1780843840000,-500.0,0.00014999,2]
[424407807,1780843840000,-500.0,0.00014999,2]
[424407808,1780843840000,-703.17,0.00014999,2]
[424407796,1780843840000,-500.0,0.00014999,2]
[424407809,1780843840000,-703.17,0.00014999,2]
[424407806,1780843840000,-500.0,0.00014999,2]
[424407771,1780843840000,-500.0,0.00014707,2]
[424407794,1780843840000,-500.0,0.00014999,2]
[424407782,1780843840000,-151.0,0.00014986,2]
[424407742,1780843840000,-1500.0,0.00013899,2]
[424407769,1780843840000,-9999.99,0.00014504,2]
[424407744,1780843840000,-500.0,0.00013899,2]
[424407741,1780843840000,-150.0,0.00013899,2]
[424407745,1780843840000,-500.0,0.00013899,2]
[424407740,1780843840000,-500.0,0.00013899,2]
[424407743,1780843840000,-250.0,0.00013899,2]
[424407804,1780843840000,-500.0,0.00014999,2]
[424407746,1780843840000,-500.0,0.00013899,2]
[424407758,1780843840000,-1153.6,0.00014368,2]
[424407747,1780843840000,-500.0,0.00013899,2]
[424407757,1780843840000,-166.66,0.00014247,2]
[424407750,1780843840000,-500.0,0.00013899,2]
[424407748,1780843840000,-500.0,0.00013899,2]
[424407749,1780843840000,-500.0,0.00013899,2]
[424407751,1780843840000,-193.0,0.000139,2]
[424407772,1780843840000,-500.0,0.00014707,2]
[424407753,1780843840000,-255.0,0.00013953,2]
[424407756,1780843840000,-166.66,0.0001411,2]
[424407752,1780843840000,-215.72725736,0.00013905,2]
[424407754,1780843840000,-166.66,0.00013973,2]
[424407759,1780843840000,-166.66,0.00014384,2]
[424407763,1780843840000,-943.8,0.00014504,2]
[424407761,1780843840000,-9999.99,0.00014504,2]
[424407762,1780843840000,-2677.43,0.00014504,2]
[424407767,1780843840000,-2057.46,0.00014504,2]
[424407760,1780843840000,-500.0,0.00014504,2]
[424407766,1780843840000,-10968.6,0.00014504,2]
[424407764,1780843840000,-299.99,0.00014504,2]
[424407770,1780843840000,-2000.0,0.00014608,2]
[424407765,1780843840000,-9999.99,0.00014504,2]
[424407768,1780843840000,-999.99,0.00014504,2]
[424407755,1780843840000,-500.0,0.00013989,2]
[424407810,1780843840000,-703.17,0.00014999,2]
[424407869,1780843840000,-202.76551464,0.000169,30]
[424407799,1780843840000,-500.0,0.00014999,2]
[424407844,1780843840000,-500.0,0.00014999,2]
[424407845,1780843840000,-500.0,0.00014999,2]
[424407842,1780843840000,-500.0,0.00014999,2]
[424407843,1780843840000,-500.0,0.00014999,2]
[424407841,1780843840000,-500.0,0.00014999,2]
[424407847,1780843840000,-185.66834357,0.00015,2]
[424407849,1780843840000,-150.0,0.00015,2]
[424407846,1780843840000,-500.0,0.00014999,2]
[424407848,1780843840000,-346.31,0.00015,2]
[424407853,1780843840000,-1500.0,0.00015195,2]
[424407866,1780843840000,-168.32,0.00016712,2]
[424407863,1780843840000,-500.0,0.00016295,2]
[424407867,1780843840000,-200.0,0.000168,3]
[424407865,1780843840000,-303.0,0.00016458,2]
[424407854,1780843840000,-1555.5,0.00015743,2]
[424407857,1780843840000,-327.3,0.00016,2]
[424407855,1780843840000,-1153.6,0.00015964,2]
[424407852,1780843840000,-433.0,0.00015148,2]
[424407859,1780843840000,-215.26951446,0.00016,2]
[424407860,1780843840000,-215.26951446,0.000161,2]
[424407862,1780843840000,-1613.0535,0.00016291,2]
[424407861,1780843840000,-215.26951446,0.000162,2]
[424407868,1780843840000,-1672.7364795,0.00016839,2]
[424407871,1780843840000,-1068.11,0.00017042,2]
[424407872,1780843840000,-1107.63007,0.00017042,2]
[424407870,1780843840000,-1030.0,0.00017042,2]
[424407874,1780843840000,-1191.11104074,0.00017387,2]
[424407873,1780843840000,-1148.61238259,0.00017042,2]
[424407805,1780843840000,-500.0,0.00014999,2]
[424407839,1780843840000,-500.0,0.00014999,2]
[424407851,1780843840000,-191.61303206,0.00015,2]
[424407864,1780843840000,-2000.0,0.00016295,2]
[424407840,1780843840000,-500.0,0.00014999,2]
[424407850,1780843840000,-287.4195481,0.00015,2]
[424407801,1780843840000,-500.0,0.00014999,2]
[424407814,1780843840000,-703.17,0.00014999,2]
[424407812,1780843840000,-703.17,0.00014999,2]
[424407813,1780843840000,-703.17,0.00014999,2]
[424407818,1780843840000,-703.17,0.00014999,2]
[424407823,1780843840000,-703.17,0.00014999,2]
[424407822,1780843840000,-703.17,0.00014999,2]
[424407824,1780843840000,-703.17,0.00014999,2]
[424407811,1780843840000,-703.17,0.00014999,2]
[424407820,1780843840000,-703.17,0.00014999,2]
[424407819,1780843840000,-703.17,0.00014999,2]
[424407821,1780843840000,-703.17,0.00014999,2]
[424407817,1780843840000,-703.17,0.00014999,2]
[424407815,1780843840000,-703.17,0.00014999,2]
[424407798,1780843840000,-500.0,0.00014999,2]
[424407834,1780843840000,-500.0,0.00014999,2]
[424407816,1780843840000,-703.17,0.00014999,2]
[424407833,1780843840000,-500.0,0.00014999,2]
[424407832,1780843840000,-228.84,0.00014999,2]
[424407835,1780843840000,-500.0,0.00014999,2]
[424407828,1780843840000,-703.17,0.00014999,2]
[424407830,1780843840000,-500.0,0.00014999,2]
[424407831,1780843840000,-500.0,0.00014999,2]
[424407827,1780843840000,-703.17,0.00014999,2]
[424407836,1780843840000,-500.0,0.00014999,2]
[424407825,1780843840000,-703.17,0.00014999,2]
[424407829,1780843840000,-703.17,0.00014999,2]
[424407838,1780843840000,-193.0,0.00014999,2]
[424407826,1780843840000,-703.17,0.00014999,2]
[424407837,1780843840000,-514.47,0.00014999,2]
[424407919,1780843841000,-1377.42282658,0.00019579,2]
[424407918,1780843841000,-642.0,0.0001953,5]
[424407917,1780843841000,-547.0,0.0001953,5]
[424407913,1780843841000,-3000.0,0.00019178,2]
[424407912,1780843841000,-1153.6,0.00019157,2]
[424407921,1780843841000,-183.83981473,0.000199,2]
[424407909,1780843841000,-1934.38338736,0.00019031,2]
[424407914,1780843841000,-567.34991975,0.00019338,2]
[424407915,1780843841000,-29999.99,0.00019339,2]
[424407916,1780843841000,-874.77201842,0.00019411,2]
[424407920,1780843841000,-2005.9555727,0.00019579,2]
[424407910,1780843841000,-500.0,0.00019098,2]
[424407924,1780843841000,-1400.0,0.0002,2]
[424407911,1780843841000,-2000.0,0.00019098,2]
[424407922,1780843841000,-410.0,0.0002,2]
[424407925,1780843841000,-596.0,0.0002,2]
[424407930,1780843841000,-1038.93,0.0002,7]
[424407927,1780843841000,-1044.0,0.0002,2]
[424407933,1780843841000,-703.0,0.0002,2]
[424407928,1780843841000,-520.0,0.0002,2]
[424407923,1780843841000,-479.0,0.0002,2]
[424407931,1780843841000,-762.0,0.0002,2]
[424407926,1780843841000,-7194.31,0.0002,2]
[424407929,1780843841000,-608.0,0.0002,2]
[424407932,1780843841000,-190.334213,0.0002,2]
[424407935,1780843841000,-1776.0,0.0002,2]
[424407937,1780843841000,-798.0,0.0002,2]
[424407947,1780843841000,-200.0,0.00020127,2]
[424407948,1780843841000,-209.40437684,0.00020127,2]
[424407949,1780843841000,-151.0,0.00020127,2]
[424407934,1780843841000,-799.0,0.0002,2]
[424407907,1780843841000,-150.0,0.00019,2]
[424407880,1780843841000,-204.374083,0.00017808,2]
[424407904,1780843841000,-7298.87,0.00018533,2]
[424407938,1780843841000,-292.0,0.0002,2]
[424407881,1780843841000,-500.0,0.00017808,2]
[424407879,1780843841000,-687.7920919,0.00017808,2]
[424407876,1780843841000,-1153.6,0.00017561,2]
[424407878,1780843841000,-414.86844055,0.00017808,2]
[424407877,1780843841000,-498.95651695,0.00017785,2]
[424407875,1780843841000,-1734.62772924,0.00017387,2]
[424407883,1780843841000,-784.52720837,0.00017808,2]
[424407893,1780843841000,-500.0,0.00018434,2]
[424407886,1780843841000,-1235.18214925,0.00017935,2]
[424407882,1780843841000,-420.34083066,0.00017808,2]
[424407894,1780843841000,-3554.0,0.00018435,2]
[424407884,1780843841000,-274.58452293,0.00017808,2]
[424407885,1780843841000,-10544.86067982,0.00017862,2]
[424407887,1780843841000,-1798.80895522,0.00017935,2]
[424407892,1780843841000,-231.02597309,0.000184,2]
[424407890,1780843841000,-166.72606526,0.000182,2]
[424407906,1780843841000,-500.0,0.00018877,2]
[424407908,1780843841000,-1328.27659266,0.00019031,2]
[424407905,1780843841000,-19780.80452379,0.00018537,2]
[424407896,1780843841000,-382.0,0.00018435,2]
[424407902,1780843841000,-150.0,0.000185,2]
[424407901,1780843841000,-1865.36488656,0.00018483,2]
[424407903,1780843841000,-9999.99,0.00018533,2]
[424407900,1780843841000,-1280.88388877,0.00018483,2]
[424407897,1780843841000,-1279.005,0.00018435,2]
[424407899,1780843841000,-419.0,0.00018435,2]
[424407895,1780843841000,-1358.0,0.00018435,2]
[424407888,1780843841000,-166.72606526,0.00018,2]
[424407889,1780843841000,-150.0,0.00018,2]
[424407891,1780843841000,-500.0,0.00018342,2]
[424407898,1780843841000,-3642.0,0.00018435,2]
[424407936,1780843841000,-613.0,0.0002,2]
[424407939,1780843841000,-719.0,0.0002,2]
[424407942,1780843841000,-3000.0,0.00020127,2]
[424407978,1780843841000,-152.0,0.00020127,2]
[424407981,1780843841000,-152.0,0.00020127,2]
[424407984,1780843841000,-500.0,0.00020127,2]
[424407991,1780843841000,-500.0,0.00020127,2]
[424407986,1780843841000,-151.0,0.00020127,2]
[424407983,1780843841000,-151.0,0.00020127,2]
[424407982,1780843841000,-151.0,0.00020127,2]
[424407987,1780843841000,-151.0,0.00020127,2]
[424407988,1780843841000,-152.0,0.00020127,2]
[424407979,1780843841000,-151.0,0.00020127,2]
[424407985,1780843841000,-152.0,0.00020127,2]
[424407990,1780843841000,-151.0,0.00020127,2]
[424407989,1780843841000,-151.0,0.00020127,2]
[424407993,1780843841000,-151.0,0.00020127,2]
[424407980,1780843841000,-500.0,0.00020127,2]
[424408004,1780843841000,-500.0,0.00020127,2]
[424408003,1780843841000,-151.0,0.00020127,2]
[424408001,1780843841000,-500.0,0.00020127,2]
[424407992,1780843841000,-152.0,0.00020127,2]
[424408005,1780843841000,-151.0,0.00020127,2]
[424408000,1780843841000,-151.0,0.00020127,2]
[424407997,1780843841000,-151.0,0.00020127,2]
[424407999,1780843841000,-151.0,0.00020127,2]
[424407998,1780843841000,-500.0,0.00020127,2]
[424407994,1780843841000,-500.0,0.00020127,2]
[424407995,1780843841000,-152.0,0.00020127,2]
[424407996,1780843841000,-151.0,0.00020127,2]
[424408006,1780843841000,-151.0,0.00020127,2]
[424408008,1780843841000,-151.0,0.00020127,2]
[424408007,1780843841000,-151.0,0.00020127,2]
[424408002,1780843841000,-151.0,0.00020127,2]
[424407973,1780843841000,-500.0,0.00020127,2]
[424408009,1780843841000,-151.0,0.00020127,2]
[424407967,1780843841000,-151.0,0.00020127,2]
[424407944,1780843841000,-209.40437684,0.00020127,2]
[424407941,1780843841000,-341.0,0.0002,2]
[424407940,1780843841000,-839.0,0.0002,2]
[424407943,1780843841000,-1000.0,0.00020127,2]
[424407945,1780843841000,-151.0,0.00020127,2]
[424407946,1780843841000,-693.39197629,0.00020127,2]
[424407950,1780843841000,-151.0,0.00020127,2]
[424407952,1780843841000,-209.40437684,0.00020127,2]
[424407953,1780843841000,-174.61919141,0.00020127,2]
[424407969,1780843841000,-1428.38747117,0.00020127,2]
[424407962,1780843841000,-500.0,0.00020127,2]
[424407961,1780843841000,-151.0,0.00020127,2]
[424407951,1780843841000,-578.20924308,0.00020127,2]
[424407955,1780843841000,-209.40437684,0.00020127,2]
[424407957,1780843841000,-209.40437684,0.00020127,2]
[424407954,1780843841000,-152.0,0.00020127,2]
[424407959,1780843841000,-500.0,0.00020127,2]
[424407972,1780843841000,-151.0,0.00020127,2]
[424407958,1780843841000,-152.0,0.00020127,2]
[424407974,1780843841000,-152.0,0.00020127,2]
[424407970,1780843841000,-500.0,0.00020127,2]
[424407971,1780843841000,-152.0,0.00020127,2]
[424407966,1780843841000,-2080.17592889,0.00020127,2]
[424407977,1780843841000,-500.0,0.00020127,2]
[424407976,1780843841000,-151.0,0.00020127,2]
[424407968,1780843841000,-160.0,0.00020127,2]
[424407975,1780843841000,-200.0,0.00020127,2]
[424407965,1780843841000,-151.0,0.00020127,2]
[424407960,1780843841000,-562.01621077,0.00020127,2]
[424407956,1780843841000,-151.0,0.00020127,2]
[424407963,1780843841000,-151.0,0.00020127,2]
[424407964,1780843841000,-152.0,0.00020127,2]
[424408048,1780843842000,-645.0,0.000209,2]
[424408064,1780843842000,-762.0,0.00021,2]
[424408052,1780843842000,-206.26472715,0.00021,2]
[424408049,1780843842000,-410.0,0.00021,2]
[424408051,1780843842000,-479.0,0.00021,2]
[424408038,1780843842000,-500.0,0.00020675,2]
[424408060,1780843842000,-608.0,0.00021,2]
[424408046,1780843842000,-309.0,0.000209,2]
[424408057,1780843842000,-520.0,0.00021,2]
[424408047,1780843842000,-315.0,0.000209,2]